fUSD/lending_fUSD_20241106
["ID","MTS","AMOUNT","RATE_DAILY","PERIOD"]
[341479662,1730920285220,-500.0,0.00029589,2]
[341479663,1730920285229,-500.0,0.00029589,2]
[341479664,1730920285239,-518.65795472,0.00029589,2]
[341479665,1730920285248,-669.62,0.00029589,2]
[341479666,1730920285257,-718.6,0.00029589,2]
[341479667,1730920285267,-500.0,0.00029589,2]
[341479668,1730920285276,-3084.36,0.00029589,2]
[341479669,1730920285286,-500.0,0.00029589,2]
[341479670,1730920285295,-524.85288317,0.00029589,2]
[341479671,1730920285304,-727.89,0.00029589,2]
[341479672,1730920285313,-1861.65,0.00029589,2]
[341479673,1730920285323,-500.0,0.00029589,2]
[341479674,1730920285849,-36940.57,0.00029589,2]
[341479675,1730920285873,-1316.34,0.00029589,2]
[341479676,1730920285884,-500.0,0.00029589,2]
[341479677,1730920285894,-3009.75,0.00029589,2]
[341479678,1730920285905,-500.0,0.00029589,2]
[341479679,1730920285915,-1149.45,0.00029589,2]
[341479680,1730920285926,-500.0,0.00029589,2]
[341479681,1730920285937,-500.0,0.00029589,2]
[341479682,1730920285947,-539.21,0.00029589,2]
[341479683,1730920285958,-4459.35,0.00029589,2]
[341479684,1730920285969,-580.25,0.00029589,2]
[341479685,1730920285980,-6541.84,0.00029589,2]
[341479686,1730920285991,-1631.52,0.00029589,2]
[341479687,1730920286003,-777.39,0.00029589,2]
[341479688,1730920286015,-500.0,0.00029589,2]
[341479689,1730920286027,-500.0,0.00029589,2]
[341479690,1730920286036,-2448.68,0.00029589,2]
[341479691,1730920286045,-1611.55,0.00029589,2]
[341479692,1730920286055,-1675.07,0.00029589,2]
[341479693,1730920286066,-2842.56,0.00029589,2]
[341479694,1730920286075,-434.71344192,0.00029589,2]
[341479695,1730920286085,-2090.64,0.00029589,2]
[341479696,1730920286095,-729.17,0.00029589,2]
[341479697,1730920286105,-4119.94,0.00029589,2]
[341479698,1730920286114,-1561.32,0.00029589,2]
[341479699,1730920286126,-500.0,0.00029589,2]
[341479700,1730920286136,-500.0,0.00029589,2]
[341479701,1730920286146,-1446.82,0.00029589,2]
[341479702,1730920286157,-908.03,0.00029589,2]
[341479703,1730920286166,-500.0,0.00029589,2]
[341479704,1730920286175,-151.0,0.00029589,7]
[341479705,1730920286185,-1649.61,0.00029589,2]
[341479706,1730920286194,-3168.62,0.00029589,2]
[341479707,1730920286203,-3106.24,0.00029589,2]
[341479708,1730920286212,-731.26,0.00029589,2]
[341479709,1730920286221,-3266.44,0.00029589,2]
[341479710,1730920286231,-500.0,0.00029589,2]
[341479711,1730920286240,-500.0,0.00029589,2]
[341479712,1730920286249,-752.29,0.00029589,2]
[341479713,1730920286259,-714.92,0.00029589,2]
[341479714,1730920286270,-2478.44,0.00029589,2]
[341479715,1730920286280,-645.24,0.00029589,2]
[341479716,1730920286289,-822.65,0.00029589,2]
[341479717,1730920286298,-2093.22,0.00029589,2]
[341479718,1730920286307,-6208.06,0.00029589,2]
[341479719,1730920286317,-1251.86,0.00029589,2]
[341479720,1730920286326,-2267.91,0.00029589,2]
[341479721,1730920286335,-932.36,0.00029589,2]
[341479722,1730920286345,-1161.0,0.00029589,2]
[341479723,1730920286357,-831.94,0.00029589,2]
[341479724,1730920286368,-726.61,0.00029589,2]
[341479725,1730920286377,-500.0,0.00029589,2]
[341479726,1730920286389,-627.41,0.00029589,2]
[341479727,1730920286398,-1820.52,0.00029589,2]
[341479728,1730920286407,-1064.72,0.00029589,2]
[341479729,1730920286418,-1990.87,0.00029589,2]
[341479730,1730920286428,-750.06,0.00029589,2]
[341479731,1730920286439,-500.0,0.00029589,2]
[341479732,1730920286449,-10580.04,0.00029589,2]
[341479733,1730920286458,-5050.46,0.00029589,2]
[341479734,1730920286468,-1538.2,0.00029589,2]
[341479735,1730920286479,-1128.8,0.00029589,2]
[341479736,1730920286490,-7716.34,0.00029589,2]
[341479737,1730920286502,-151.0,0.00029589,7]
[341479738,1730920286513,-3986.66,0.00029589,2]
[341479739,1730920286524,-656.74,0.00029589,2]
[341479740,1730920286535,-500.63,0.00029589,2]
[341479741,1730920286546,-5027.84,0.00029589,2]
[341479742,1730920286556,-500.0,0.00029589,2]
[341479743,1730920286566,-4036.63,0.00029589,2]
[341479744,1730920286576,-6250.81,0.00029589,2]
[341479745,1730920286586,-500.0,0.00029589,2]
[341479746,1730920286598,-934.04,0.00029589,2]
[341479747,1730920286609,-500.0,0.00029589,2]
[341479748,1730920286619,-500.0,0.00029589,2]
[341479749,1730920286628,-2428.87,0.00029589,2]
[341479750,1730920286641,-3700.97,0.00029589,2]
[341479751,1730920286653,-151.0,0.00029589,7]
[341479752,1730920286663,-1135.07,0.00029589,2]
[341479753,1730920286672,-3817.82,0.00029589,2]
[341479754,1730920286684,-3046.7,0.00029589,2]
[341479755,1730920286696,-740.35,0.00029589,2]
[341479756,1730920286707,-3060.48,0.00029589,2]
[341479757,1730920286717,-500.0,0.00029589,2]
[341479758,1730920286726,-1194.34,0.00029589,2]
[341479759,1730920286735,-3836.62,0.00029589,2]
[341479760,1730920286745,-4916.89,0.00029589,2]
[341479761,1730920286755,-150.32019207,0.00029589,2]
[341479762,1730920286764,-3245.5,0.00029589,2]
[341479763,1730920286774,-151.0,0.00029589,7]
[341479764,1730920286786,-1506.02,0.00029589,2]
[341479765,1730920286796,-151.0,0.00029589,7]
[341479766,1730920286806,-512.382164,0.00029589,7]
[341479767,1730920286815,-2015.43,0.00029589,2]
[341479768,1730920286825,-500.0,0.00029589,2]
[341479769,1730920286835,-1997.41,0.00029589,2]
[341479770,1730920286844,-548.49,0.00029589,2]
[341479771,1730920286854,-500.0,0.00029589,2]
[341479772,1730920286863,-500.0,0.00029589,2]
[341479773,1730920286874,-1188.15,0.00029589,2]
[341479774,1730920286884,-512.382164,0.00029589,7]
[341479775,1730920286893,-2225.25789038,0.00029589,2]
[341479776,1730920286991,-1325.76210962,0.00029589,2]
[341479777,1730920287001,-151.0,0.00029589,7]
[341479778,1730920287011,-9431.91,0.00029589,2]
[341479779,1730920287021,-500.0,0.00029589,2]
[341479780,1730920287030,-543.87,0.00029589,2]
[341479781,1730920287040,-500.0,0.00029589,2]
[341479782,1730920287049,-2959.67,0.00029589,2]
[341479783,1730920287058,-843.81,0.00029589,2]
[341479784,1730920287067,-151.0,0.00029589,7]
[341479785,1730920287077,-526.6819334,0.00029589,2]
[341479786,1730920287087,-2640.34,0.00029589,2]
[341479787,1730920287096,-2985.74,0.00029589,2]
[341479788,1730920287106,-643.72,0.00029589,2]
[341479789,1730920287116,-3511.16,0.00029589,2]
[341479790,1730920287131,-642.61,0.00029589,2]
[341479791,1730920287140,-528.21,0.00029589,2]
[341479792,1730920287149,-151.0,0.00029589,7]
[341479793,1730920287163,-500.0,0.00029589,2]
[341479794,1730920287173,-636.38,0.00029589,2]
[341479795,1730920287182,-500.0,0.00029589,2]
[341479796,1730920287191,-836.94,0.00029589,2]
[341479797,1730920287201,-817.7,0.00029589,2]
[341479798,1730920287210,-1645.62,0.00029589,2]
[341479799,1730920287220,-491.88767969,0.00029589,2]
[341479800,1730920287230,-820.62,0.00029589,2]
[341479801,1730920287239,-500.0,0.00029589,2]
[341479802,1730920287249,-1697.61,0.00029589,2]
[341479803,1730920287259,-1293.6,0.00029589,2]
[341479804,1730920287268,-500.0,0.00029589,2]
[341479805,1730920287278,-643.83,0.00029589,2]
[341479806,1730920287287,-2894.45,0.00029589,2]
[341479807,1730920287297,-500.0,0.00029589,2]
[341479808,1730920287306,-500.0,0.00029589,2]
[341479809,1730920287315,-500.0,0.00029589,2]
[341479810,1730920287324,-500.0,0.00029589,2]
[341479811,1730920287333,-500.0,0.00029589,2]
[341479812,1730920287343,-1363.32,0.000297,7]
[341479813,1730920287351,-1500.0,0.00029727,2]
[341479814,1730920287362,-212.17945116,0.00029827,2]
[341479815,1730920287376,-502.00205463,0.00029827,5]
[341479816,1730920287385,-190.3992101,0.00029852,5]
[341479817,1730920287395,-338.48062356,0.00029852,5]
[341479818,1730920287404,-500.0,0.00029852,5]
[341479819,1730920287413,-661.67,0.00029862,2]
[341479820,1730920287422,-500.0,0.00029863,2]
[341479821,1730920287431,-500.0,0.00029863,2]
[341479822,1730920287440,-2920.66,0.00029863,2]
[341479823,1730920287450,-614.25,0.00029863,2]
[341479824,1730920287459,-500.0,0.00029863,2]
[341479825,1730920287469,-500.0,0.00029863,2]
[341479826,1730920287479,-574.18,0.00029863,2]
[341479827,1730920287489,-1205.75,0.00029863,2]
[341479828,1730920287500,-750.76,0.00029863,2]
[341479829,1730920287510,-500.0,0.00029863,2]
[341479830,1730920287521,-500.0,0.00029863,2]
[341479831,1730920287531,-1062.35,0.00029863,2]
[341479832,1730920287541,-997.57,0.00029863,2]
[341479833,1730920287551,-500.0,0.00029863,2]
[341479834,1730920287562,-500.0,0.00029863,2]
[341479835,1730920287573,-500.0,0.00029863,2]
[341479836,1730920287584,-500.0,0.00029863,2]
[341479837,1730920287594,-1292.06,0.00029863,2]
[341479838,1730920287606,-500.0,0.00029863,2]
[341479839,1730920287617,-500.0,0.00029863,2]
[341479840,1730920287630,-500.0,0.00029863,2]
[341479841,1730920287643,-500.0,0.00029863,2]
[341479842,1730920287653,-1826.45,0.00029863,2]
[341479843,1730920287662,-621.32,0.00029863,2]
[341479844,1730920287671,-500.0,0.00029863,2]
[341479845,1730920287682,-546.43,0.00029863,2]
[341479846,1730920287693,-663.78,0.00029863,2]
[341479847,1730920287704,-617.91,0.00029863,2]
[341479848,1730920287716,-500.0,0.00029863,2]
[341479849,1730920287729,-1790.04,0.00029863,2]
[341479850,1730920287739,-500.0,0.00029863,2]
[341479851,1730920287749,-500.0,0.00029863,2]
[341479852,1730920287758,-1554.56,0.00029863,2]
[341479853,1730920287767,-500.0,0.00029863,2]
[341479854,1730920287776,-525.88,0.00029863,2]
[341479855,1730920287786,-500.0,0.00029863,2]
[341479856,1730920287796,-500.0,0.00029863,2]
[341479857,1730920287806,-711.29,0.00029863,2]
[341479858,1730920287816,-1234.48,0.00029863,2]
[341479859,1730920287827,-500.0,0.00029863,2]
[341479860,1730920287837,-500.0,0.00029863,2]
[341479861,1730920287849,-1153.06,0.00029863,2]
[341479862,1730920287860,-500.0,0.00029863,2]
[341479863,1730920287870,-500.0,0.00029863,2]
[341479864,1730920287879,-500.0,0.00029863,2]
[341479865,1730920287889,-957.34,0.00029863,2]
[341479866,1730920287899,-500.0,0.00029863,2]
[341479867,1730920287911,-171.45188811,0.00029863,2]
[341479868,1730920287923,-500.0,0.00029863,2]
[341479869,1730920287934,-1196.66,0.00029863,2]
[341479870,1730920287944,-500.0,0.00029863,2]
[341479871,1730920287954,-1001.64,0.00029863,2]
[341479872,1730920287966,-500.0,0.00029863,2]
[341479873,1730920287976,-1472.58,0.00029863,2]
[341479874,1730920287987,-545.29692171,0.00029863,2]
[341479875,1730920287998,-500.0,0.00029863,2]
[341479876,1730920288007,-1605.02,0.00029863,2]
[341479877,1730920288017,-271.12,0.00029863,2]
[341479878,1730920288026,-652.62,0.00029863,2]
[341479879,1730920288036,-500.0,0.00029863,2]
[341479880,1730920288046,-365.64,0.00029863,2]
[341479881,1730920288056,-500.0,0.00029863,2]
[341479882,1730920288067,-1379.21,0.00029863,2]
[341479883,1730920288076,-516.74425672,0.00029863,2]
[341479884,1730920288087,-1209.69,0.00029863,2]
[341479885,1730920288097,-1638.01,0.00029863,2]
[341479886,1730920288106,-500.0,0.00029863,2]
[341479887,1730920288116,-1179.88,0.00029863,2]
[341479888,1730920288129,-500.0,0.00029863,2]
[341479889,1730920288138,-639.69,0.00029863,2]
[341479890,1730920288148,-500.0,0.00029863,2]
[341479891,1730920288158,-600.21,0.00029863,2]
[341479892,1730920288168,-500.0,0.00029863,2]
[341479893,1730920288178,-500.0,0.00029863,2]
[341479894,1730920288188,-912.36,0.00029863,2]
[341479895,1730920288199,-500.0,0.00029863,2]
[341479896,1730920288210,-508.65,0.00029863,2]
[341479897,1730920288220,-500.0,0.00029863,2]
[341479898,1730920288232,-500.0,0.00029863,2]
[341479899,1730920288242,-610.62,0.00029863,2]
[341479900,1730920288254,-456.73566728,0.00029863,2]
[341479901,1730920288266,-500.0,0.00029863,2]
[341479902,1730920288277,-500.0,0.00029863,2]
[341479903,1730920288286,-500.0,0.00029863,2]
[341479904,1730920288296,-500.0,0.00029863,2]
[341479905,1730920288306,-546.14817511,0.00029863,2]
[341479906,1730920288315,-1403.53,0.00029863,2]
[341479907,1730920288325,-951.98,0.00029863,2]
[341479908,1730920288336,-1718.49,0.00029863,2]
[341479909,1730920288346,-500.0,0.00029863,2]
[341479910,1730920288356,-770.26,0.00029863,2]
[341479911,1730920288366,-534.23,0.00029863,2]
[341479912,1730920288378,-886.88,0.00029863,2]
[341479913,1730920288388,-500.0,0.00029863,2]
[341479914,1730920288397,-500.0,0.00029863,2]
[341479915,1730920288407,-3128.73,0.00029863,2]
[341479916,1730920288418,-591.92,0.00029863,2]
[341479917,1730920288429,-1587.38,0.00029863,2]
[341479918,1730920288439,-500.0,0.00029863,2]
[341479919,1730920288449,-672.38,0.00029863,2]
[341479920,1730920288461,-1225.74,0.00029863,2]
[341479921,1730920288473,-631.72,0.00029863,2]
[341479922,1730920288485,-500.0,0.00029863,2]
[341479923,1730920288496,-1710.63,0.00029863,2]
[341479924,1730920288506,-500.0,0.00029863,2]
[341479925,1730920288516,-813.74,0.00029863,2]
[341479926,1730920288526,-500.0,0.00029863,2]
[341479927,1730920288536,-500.0,0.00029863,2]
[341479928,1730920288546,-500.0,0.00029863,2]
[341479929,1730920288556,-747.59,0.00029863,2]
[341479930,1730920288566,-1093.9,0.00029863,2]
[341479931,1730920288576,-500.0,0.00029863,2]
[341479932,1730920288587,-500.0,0.00029863,2]
[341479933,1730920288597,-500.0,0.00029863,2]
[341479934,1730920288609,-500.0,0.00029863,2]
[341479935,1730920288619,-500.0,0.00029863,2]
[341479936,1730920288628,-559.12,0.00029863,2]
[341479937,1730920288642,-500.0,0.00029863,2]
[341479938,1730920288651,-500.0,0.00029863,2]
[341479939,1730920288661,-869.22,0.00029863,2]
[341479940,1730920288672,-500.0,0.00029863,2]
[341479941,1730920288683,-815.31,0.00029863,2]
[341479942,1730920288695,-828.15,0.00029863,2]
[341479943,1730920288706,-500.0,0.00029863,2]
[341479944,1730920288716,-948.69,0.00029863,2]
[341479945,1730920288726,-500.0,0.00029863,2]
[341479946,1730920288735,-6450.1,0.00029863,2]
[341479947,1730920288745,-712.2,0.00029863,2]
[341479948,1730920288754,-500.0,0.00029863,2]
[341479949,1730920288763,-1961.14,0.00029863,2]
[341479950,1730920288774,-2553.79,0.00029863,2]
[341479951,1730920288785,-933.76,0.00029863,2]
[341479952,1730920288795,-619.47,0.00029863,2]
[341479953,1730920288805,-1552.17,0.00029863,2]
[341479954,1730920288814,-852.71,0.00029863,2]
[341479955,1730920288825,-985.31,0.00029863,2]
[341479956,1730920288835,-500.0,0.00029863,2]
[341479957,1730920288846,-500.0,0.00029863,2]
[341479958,1730920288856,-1319.54,0.00029863,2]
[341479959,1730920288867,-344.51149129,0.00029863,2]
[341479960,1730920288880,-544.73,0.00029863,2]
[341479961,1730920289092,-1040.45,0.00029863,2]
[341479962,1730920289103,-1047.75,0.00029863,2]
[341479963,1730920289113,-1243.71,0.00029863,2]
[341479964,1730920289125,-809.24,0.00029863,2]
[341479965,1730920289135,-508.7,0.00029863,2]
[341479966,1730920289146,-1768.07,0.00029863,2]
[341479967,1730920289156,-3662.42,0.00029863,2]
[341479968,1730920289166,-2961.59,0.00029863,2]
[341479969,1730920289176,-626.81,0.00029863,2]
[341479970,1730920289186,-543.01,0.00029863,2]
[341479971,1730920289196,-706.05,0.00029863,2]
[341479972,1730920289206,-500.0,0.00029863,2]
[341479973,1730920289216,-280.903323,0.00029863,7]
[341479974,1730920289226,-651.62,0.00029863,2]
[341479975,1730920289238,-2251.89,0.00029863,2]
[341479976,1730920289248,-1884.31,0.00029863,2]
[341479977,1730920289258,-280.903323,0.00029863,7]
[341479978,1730920289268,-732.87,0.00029863,2]
[341479979,1730920289278,-500.0,0.00029863,2]
[341479980,1730920289288,-500.0,0.00029863,2]
[341479981,1730920289298,-2703.76,0.00029863,2]
[341479982,1730920289309,-759.2,0.00029863,2]
[341479983,1730920289320,-730.51,0.00029863,2]
[341479984,1730920289330,-156.772908,0.00029863,7]
[341479985,1730920289340,-601.73,0.00029863,2]
[341479986,1730920289351,-4472.046259,0.00029863,7]
[341479987,1730920289362,-1846.6,0.00029863,2]
[341479988,1730920289377,-500.0,0.00029863,2]
[341479989,1730920289386,-151.0,0.00029863,7]
[341479990,1730920289396,-500.0,0.00029863,2]
[341479991,1730920289406,-2388.47,0.00029863,2]
[341479992,1730920289415,-4472.046259,0.00029863,7]
[341479993,1730920289425,-217.442755,0.00029863,2]
[341479994,1730920289435,-1087.87,0.00029863,2]
[341479995,1730920289445,-10275.63,0.00029863,2]
[341479996,1730920289456,-228.879307,0.00029863,2]
[341479997,1730920289466,-1027.83,0.00029863,2]
[341479998,1730920289476,-500.0,0.00029863,2]
[341479999,1730920289487,-934.72,0.00029863,2]
[341480000,1730920289498,-500.0,0.00029863,2]
[341480001,1730920289508,-500.0,0.00029863,2]
[341480002,1730920289518,-680.02,0.00029863,2]
[341480003,1730920289529,-984.02,0.00029863,2]
[341480004,1730920289539,-151.0,0.00029863,7]
[341480005,1730920289550,-2654.17,0.00029863,2]
[341480006,1730920289560,-500.0,0.00029863,2]
[341480007,1730920289570,-763.29,0.00029863,2]
[341480008,1730920289581,-2923.01,0.00029863,2]
[341480009,1730920289592,-500.0,0.00029863,2]
[341480010,1730920289601,-500.0,0.00029863,2]
[341480011,1730920289611,-525.13822083,0.00029863,2]
[341480012,1730920289623,-1057.64,0.00029863,2]
[341480013,1730920289633,-500.0,0.00029863,2]
[341480014,1730920289644,-500.0,0.00029863,2]
[341480015,1730920289653,-500.0,0.00029863,2]
[341480016,1730920289663,-151.0,0.00029863,7]
[341480017,1730920289672,-669.62,0.00029863,2]
[341480018,1730920289682,-718.6,0.00029863,2]
[341480019,1730920289692,-500.0,0.00029863,2]
[341480020,1730920289703,-3084.36,0.00029863,2]
[341480021,1730920289715,-500.0,0.00029863,2]
[341480022,1730920289727,-727.89,0.00029863,2]
[341480023,1730920289739,-1861.65,0.00029863,2]
[341480024,1730920289750,-500.0,0.00029863,2]
[341480025,1730920289764,-36940.57,0.00029863,2]
[341480026,1730920289775,-1316.34,0.00029863,2]
[341480027,1730920289785,-500.0,0.00029863,2]
[341480028,1730920289795,-3009.75,0.00029863,2]
[341480029,1730920289807,-500.0,0.00029863,2]
[341480030,1730920289818,-1149.45,0.00029863,2]
[341480031,1730920289828,-500.0,0.00029863,2]
[341480032,1730920289839,-500.0,0.00029863,2]
[341480033,1730920289848,-151.0,0.00029863,7]
[341480034,1730920289859,-4459.35,0.00029863,2]
[341480035,1730920289872,-539.21,0.00029863,2]
[341480036,1730920289882,-580.25,0.00029863,2]
[341480037,1730920289892,-6541.84,0.00029863,2]
[341480038,1730920289902,-1631.52,0.00029863,2]
[341480039,1730920289911,-151.0,0.00029863,7]
[341480040,1730920289920,-777.39,0.00029863,2]
[341480041,1730920289930,-500.0,0.00029863,2]
[341480042,1730920289940,-500.0,0.00029863,2]
[341480043,1730920289949,-2448.68,0.00029863,2]
[341480044,1730920289960,-1611.55,0.00029863,2]
[341480045,1730920289969,-1675.07,0.00029863,2]
[341480046,1730920289979,-2842.56,0.00029863,2]
[341480047,1730920289989,-2090.64,0.00029863,2]
[341480048,1730920289999,-729.17,0.00029863,2]
[341480049,1730920290008,-4119.94,0.00029863,2]
[341480050,1730920290018,-1561.32,0.00029863,2]
[341480051,1730920290028,-500.0,0.00029863,2]
[341480052,1730920290038,-500.0,0.00029863,2]
[341480053,1730920290047,-1446.82,0.00029863,2]
[341480054,1730920290057,-908.03,0.00029863,2]
[341480055,1730920290066,-500.0,0.00029863,2]
[341480056,1730920290077,-151.0,0.00029863,7]
[341480057,1730920290087,-1649.61,0.00029863,2]
[341480058,1730920290096,-3168.62,0.00029863,2]
[341480059,1730920290106,-3106.24,0.00029863,2]
[341480060,1730920290116,-731.26,0.00029863,2]
[341480061,1730920290128,-3266.44,0.00029863,2]
[341480062,1730920290138,-300.19968953,0.00029863,2]
[341480063,1730920290148,-500.0,0.00029863,2]
[341480064,1730920290158,-752.29,0.00029863,2]
[341480065,1730920290167,-714.92,0.00029863,2]
[341480066,1730920290177,-2478.44,0.00029863,2]
[341480067,1730920290187,-645.24,0.00029863,2]
[341480068,1730920290196,-822.65,0.00029863,2]
[341480069,1730920290206,-2093.22,0.00029863,2]
[341480070,1730920290215,-6208.06,0.00029863,2]
[341480071,1730920290224,-1251.86,0.00029863,2]
[341480072,1730920290234,-2267.91,0.00029863,2]
[341480073,1730920290244,-151.0,0.00029863,7]
[341480074,1730920290254,-932.36,0.00029863,2]
[341480075,1730920290264,-1161.0,0.00029863,2]
[341480076,1730920290274,-831.94,0.00029863,2]
[341480077,1730920290284,-726.61,0.00029863,2]
[341480078,1730920290294,-500.0,0.00029863,2]
[341480079,1730920290303,-627.41,0.00029863,2]
[341480080,1730920290313,-1820.52,0.00029863,2]
[341480081,1730920290323,-1064.72,0.00029863,2]
[341480082,1730920290332,-1990.87,0.00029863,2]
[341480083,1730920290342,-750.06,0.00029863,2]
[341480084,1730920290351,-500.0,0.00029863,2]
[341480085,1730920290361,-10580.04,0.00029863,2]
[341480086,1730920290371,-1538.2,0.00029863,2]
[341480087,1730920290381,-5050.46,0.00029863,2]
[341480088,1730920290390,-1128.8,0.00029863,2]
[341480089,1730920290399,-7716.34,0.00029863,2]
[341480090,1730920290410,-151.0,0.00029863,7]
[341480091,1730920290419,-3986.66,0.00029863,2]
[341480092,1730920290429,-656.74,0.00029863,2]
[341480093,1730920290438,-500.63,0.00029863,2]
[341480094,1730920290448,-5027.84,0.00029863,2]
[341480095,1730920290457,-590.34072603,0.00029863,2]
[341480096,1730920290467,-4036.63,0.00029863,2]
[341480097,1730920290476,-6250.81,0.00029863,2]
[341480098,1730920290485,-500.0,0.00029863,2]
[341480099,1730920290495,-934.04,0.00029863,2]
[341480100,1730920290505,-500.0,0.00029863,2]
[341480101,1730920290515,-500.0,0.00029863,2]
[341480102,1730920290524,-2428.87,0.00029863,2]
[341480103,1730920290534,-3700.97,0.00029863,2]
[341480104,1730920290543,-206.304068,0.00029863,7]
[341480105,1730920290553,-1135.07,0.00029863,2]
[341480106,1730920290562,-3817.82,0.00029863,2]
[341480107,1730920290572,-3046.7,0.00029863,2]
[341480108,1730920290581,-740.35,0.00029863,2]
[341480109,1730920290590,-3060.48,0.00029863,2]
[341480110,1730920290599,-500.0,0.00029863,2]
[341480111,1730920290609,-1194.34,0.00029863,2]
[341480112,1730920290619,-3836.62,0.00029863,2]
[341480113,1730920290632,-4916.89,0.00029863,2]
[341480114,1730920290649,-3245.5,0.00029863,2]
[341480115,1730920290659,-1506.02,0.00029863,2]
[341480116,1730920290668,-151.0,0.00029863,7]
[341480117,1730920290679,-151.0,0.00029863,7]
[341480118,1730920290688,-512.382164,0.00029863,7]
[341480119,1730920290698,-2015.43,0.00029863,2]
[341480120,1730920290708,-500.0,0.00029863,2]
[341480121,1730920290717,-1997.41,0.00029863,2]
[341480122,1730920290727,-548.49,0.00029863,2]
[341480123,1730920290736,-500.0,0.00029863,2]
[341480124,1730920290746,-1188.15,0.00029863,2]
[341480125,1730920290756,-500.0,0.00029863,2]
[341480126,1730920290765,-512.382164,0.00029863,7]
[341480127,1730920290775,-3551.02,0.00029863,2]
[341480128,1730920290784,-151.0,0.00029863,7]
[341480129,1730920290794,-9431.91,0.00029863,2]
[341480130,1730920290804,-610.89732501,0.00029863,2]
[341480131,1730920290814,-543.87,0.00029863,2]
[341480132,1730920290823,-500.0,0.00029863,2]
[341480133,1730920290833,-2959.67,0.00029863,2]
[341480134,1730920290843,-843.81,0.00029863,2]
[341480135,1730920290852,-151.0,0.00029863,7]
[341480136,1730920290862,-2640.34,0.00029863,2]
[341480137,1730920290876,-2985.74,0.00029863,2]
[341480138,1730920290888,-643.72,0.00029863,2]
[341480139,1730920290898,-3511.16,0.00029863,2]
[341480140,1730920290907,-642.61,0.00029863,2]
[341480141,1730920290917,-528.21,0.00029863,2]
[341480142,1730920290927,-151.0,0.00029863,7]
[341480143,1730920290937,-500.0,0.00029863,2]
[341480144,1730920290947,-636.38,0.00029863,2]
[341480145,1730920290957,-500.0,0.00029863,2]
[341480146,1730920290967,-836.94,0.00029863,2]
[341480147,1730920290977,-817.7,0.00029863,2]
[341480148,1730920290987,-1645.62,0.00029863,2]
[341480149,1730920290997,-500.0,0.00029863,2]
[341480150,1730920291007,-1697.61,0.00029863,2]
[341480151,1730920291017,-1293.6,0.00029863,2]
[341480152,1730920291027,-526.57752486,0.00029863,2]
[341480153,1730920291038,-643.83,0.00029863,2]
[341480154,1730920291047,-2894.45,0.00029863,2]
[341480155,1730920291057,-820.62,0.00029863,2]
[341480156,1730920291067,-500.0,0.00029863,2]
[341480157,1730920291076,-500.0,0.00029863,2]
[341480158,1730920291085,-530.16764122,0.00029863,2]
[341480159,1730920291095,-500.0,0.00029863,2]
[341480160,1730920291104,-500.0,0.00029863,2]
[341480161,1730920291114,-2400.0,0.000299,10]